bitfinex/quotes_BTCUSD_20250812
["timestamp","ask_amount","ask_price","bid_price","bid_amount"]
[1755007270985,0.42228084,118900.0,118890.0,0.00105062]
[1755007271887,0.98050987,118900.0,118890.0,0.00105062]
[1755007272120,0.42028084,118900.0,118890.0,5.062e-05]
[1755007272316,0.41328084,118900.0,118890.0,5.062e-05]
[1755007272546,1.00169987,118900.0,118890.0,5.062e-05]
[1755007272998,1.00069987,118900.0,118890.0,5.062e-05]
[1755007273484,0.99969987,118900.0,118890.0,0.00105062]
[1755007273929,0.44447084,118900.0,118890.0,0.00105062]
[1755007274157,1.00269987,118900.0,118890.0,0.00105062]
[1755007274643,1.00169987,118900.0,118890.0,5.062e-05]
[1755007275323,0.44347084,118900.0,118890.0,5.062e-05]
[1755007275544,1.00169987,118900.0,118890.0,5.062e-05]
[1755007275769,0.41320084,118900.0,118890.0,5.062e-05]
[1755007275985,0.41820084,118900.0,118890.0,5.062e-05]
[1755007276918,0.39369182,118900.0,118890.0,5.062e-05]
[1755007277172,0.41716084,118900.0,118890.0,5.062e-05]
[1755007277634,0.97438987,118900.0,118890.0,5.062e-05]
[1755007277870,1.00257987,118900.0,118890.0,5.062e-05]
[1755007278812,0.16826518,118860.0,118850.0,0.7]
[1755007279032,0.31296518,118860.0,118850.0,0.70048959]
[1755007279245,0.31296518,118860.0,118850.0,0.00048959]
[1755007279701,0.97136648,118860.0,118850.0,0.00048959]
[1755007280148,0.41313745,118860.0,118850.0,0.00048959]
[1755007280376,0.41313745,118860.0,118850.0,0.00148959]
[1755007280855,0.97336648,118860.0,118850.0,0.00148959]
[1755007281339,0.42336174,118860.0,118850.0,0.00148959]
[1755007284306,0.41513745,118860.0,118850.0,0.00148959]
[1755007285233,0.41211745,118860.0,118850.0,0.00148959]
[1755007286326,0.41513745,118860.0,118850.0,0.00148959]
[1755007287181,0.16112902,118860.0,118850.0,0.16976893]
[1755007287448,0.1877142,118860.0,118850.0,0.16976893]
[1755007287651,0.1877142,118860.0,118850.0,0.00148959]
[1755007288178,0.01944902,118860.0,118850.0,0.16976893]
[1755007288373,0.01944902,118860.0,118850.0,0.72799796]
[1755007288584,0.01944902,118860.0,118850.0,0.72945796]
[1755007288791,0.01944902,118860.0,118850.0,0.17122893]
[1755007289200,0.002,118860.0,118850.0,0.72945796]
[1755007289420,0.002,118860.0,118850.0,0.95366121]
[1755007290307,0.002,118860.0,118850.0,0.39443218]
[1755007291239,0.002,118860.0,118850.0,0.25295218]
[1755007291896,0.003,118860.0,118850.0,0.25495218]
[1755007292112,0.003,118860.0,118850.0,0.33743661]
[1755007292325,0.003,118860.0,118850.0,0.25495218]
[1755007292777,0.003,118860.0,118850.0,0.81418121]
[1755007296195,0.003,118860.0,118850.0,1.37241024]
[1755007296481,0.003,118860.0,118850.0,0.81629121]
[1755007296688,0.003,118860.0,118850.0,1.59877564]
[1755007296904,0.003,118860.0,118850.0,1.5986486]
[1755007297328,0.003,118860.0,118850.0,2.15687763]
[1755007297809,0.001,118860.0,118850.0,0.95336514]
[1755007298033,0.001,118860.0,118850.0,1.09960514]
[1755007298711,0.17133108,118870.0,118860.0,0.16826518]
[1755007298903,0.19717886,118880.0,118870.0,0.16825103]
[1755007299122,0.02052902,118880.0,118870.0,0.86772006]
[1755007299327,0.00368,118890.0,118880.0,0.16823687]
[1755007299534,0.00368,118890.0,118880.0,0.7264659]
[1755007300352,0.00368,118890.0,118880.0,0.16823687]
[1755007300720,0.19343174,118890.0,118880.0,0.16823687]
[1755007300923,0.19443174,118890.0,118880.0,0.30943687]
[1755007301336,0.02620902,118890.0,118880.0,0.30943687]
[1755007301540,0.02412902,118890.0,118880.0,0.35805051]
[1755007301756,0.00668,118890.0,118880.0,0.91627954]
[1755007301958,0.00568,118890.0,118880.0,0.91627954]
[1755007302139,0.19443174,118890.0,118880.0,0.16823687]
[1755007302343,0.19443174,118890.0,118880.0,0.16923687]
[1755007302962,0.19243174,118890.0,118880.0,0.001]
[1755007303677,0.01744902,118880.0,118870.0,0.30941103]
[1755007303878,0.17498272,118890.0,118870.0,0.86764006]
[1755007303879,0.00468,118890.0,118870.0,0.86764006]
[1755007304145,0.00468,118890.0,118880.0,0.16823687]
[1755007304350,0.00568,118890.0,118880.0,0.7264659]
[1755007304522,0.00468,118890.0,118880.0,0.16823687]
[1755007305170,0.00368,118890.0,118880.0,0.16823687]
[1755007305608,0.00368,118890.0,118880.0,0.7940763]
[1755007305795,0.00368,118890.0,118880.0,0.87802073]
[1755007306002,0.00368,118890.0,118880.0,0.96074398]
[1755007306434,0.00368,118890.0,118880.0,0.96174398]
[1755007306648,0.00468,118890.0,118880.0,0.96174398]
[1755007306865,0.1766372,118940.0,118930.0,0.16815786]
[1755007306866,0.16815223,118940.0,118930.0,0.16815786]
[1755007307074,0.16815223,118940.0,118930.0,0.30923786]
[1755007307285,0.171232,118940.0,118930.0,0.30923786]
[1755007307699,0.00308,118940.0,118930.0,0.30923786]
[1755007307918,0.31771867,118950.0,118930.0,0.30923786]
[1755007307919,0.32079867,118950.0,118930.0,0.30923786]
[1755007308127,0.18560102,118940.0,118930.0,0.30923786]
[1755007308331,0.02052902,118940.0,118930.0,0.30923786]
[1755007308538,0.18868102,118940.0,118930.0,0.30923786]
[1755007308752,0.02052902,118940.0,118930.0,0.30923786]
[1755007309370,0.02152902,118940.0,118930.0,0.30923786]
[1755007309670,0.02252902,118940.0,118930.0,0.30923786]
[1755007309870,0.19068102,118940.0,118930.0,0.30923786]
[1755007310107,0.02252902,118940.0,118930.0,0.30923786]
[1755007310323,0.01944902,118940.0,118930.0,0.30923786]
[1755007310701,0.19068102,118940.0,118930.0,0.30923786]
[1755007312055,0.19068102,118940.0,118930.0,0.14108]
[1755007312265,0.19068102,118940.0,118920.0,0.31758929]
[1755007312469,0.17124614,118930.0,118920.0,0.31758929]
[1755007312891,0.00308,118930.0,118920.0,0.32592908]
[1755007313094,0.17124614,118930.0,118920.0,0.31758929]
[1755007313520,0.00308,118930.0,118920.0,0.31758929]
[1755007314057,0.00308,118930.0,118920.0,0.32599205]
[1755007314243,0.18869516,118930.0,118920.0,0.31758929]
[1755007314487,0.18869516,118930.0,118920.0,0.31858929]
[1755007314706,0.00408,118940.0,118930.0,0.16816614]
[1755007314962,0.001,118940.0,118930.0,0.72639517]
[1755007315195,0.00049027,118950.0,118940.0,0.168152]
[1755007315471,0.00049027,118950.0,118940.0,0.39179525]
[1755007315712,0.00049027,118950.0,118940.0,0.95002428]
[1755007315933,0.00049027,118950.0,118940.0,0.95873979]
[1755007316554,0.00249027,118950.0,118940.0,0.40197076]
[1755007316704,0.00249027,118950.0,118940.0,0.95973979]
[1755007316882,0.00049027,118950.0,118940.0,0.95973979]
[1755007318183,0.00049027,118950.0,118940.0,0.26059076]
[1755007318396,0.17170814,118950.0,118940.0,0.31974751]
[1755007318601,0.00357027,118950.0,118940.0,0.170152]
[1755007318818,0.00357027,118950.0,118940.0,0.310992]
[1755007319253,0.17170814,118950.0,118940.0,0.310992]
[1755007319661,0.18915716,118950.0,118940.0,0.002]
[1755007319880,0.18915716,118950.0,118940.0,0.14284]
[1755007320083,0.18915716,118950.0,118940.0,0.1428]
[1755007320307,0.18915716,118950.0,118940.0,0.002]
[1755007320524,0.18915716,118950.0,118940.0,0.001]
[1755007320913,0.18915716,118950.0,118940.0,0.72738103]
[1755007320914,0.01993929,118950.0,118940.0,0.72738103]
[1755007321087,0.00249027,118950.0,118940.0,0.7168259]
[1755007321279,0.00249027,118950.0,118940.0,0.168152]
[1755007321726,0.00349027,118950.0,118940.0,0.87671468]
[1755007321931,0.00349027,118950.0,118940.0,0.95919911]
[1755007322134,0.00349027,118950.0,118940.0,0.96065911]
[1755007322346,0.00049027,118950.0,118940.0,0.96065911]
[1755007322756,0.00049027,118950.0,118940.0,1.10241911]
[1755007323169,0.00049027,118950.0,118940.0,0.54419008]
[1755007323372,0.00049027,118950.0,118940.0,1.10095911]
[1755007323581,0.00049027,118950.0,118940.0,0.96019911]
[1755007323796,0.00049027,118950.0,118940.0,0.39235643]
[1755007324011,0.00357027,118950.0,118940.0,0.39235643]
[1755007324873,0.00357027,118950.0,118940.0,0.309872]
[1755007327653,0.00357027,118950.0,118940.0,0.169152]
[1755007327900,0.00357027,118950.0,118940.0,0.309832]
[1755007328120,0.00049027,118950.0,118940.0,0.309832]
[1755007328327,0.00049027,118950.0,118940.0,0.86806103]
[1755007328530,0.00049027,118950.0,118940.0,0.95054546]
[1755007328751,0.00049027,118950.0,118940.0,1.03326871]
[1755007328977,0.00049027,118950.0,118940.0,1.03472871]
[1755007329223,0.00347,118980.0,118970.0,0.1681096]
[1755007329443,0.0004,118980.0,118970.0,0.86697863]
[1755007329667,0.0004,118980.0,118970.0,0.94946306]
[1755007329884,0.0004,118980.0,118970.0,0.93891066]
[1755007330108,0.0004,118980.0,118970.0,1.02163391]
[1755007330330,0.0004,118980.0,118970.0,0.44863161]
[1755007330555,0.0004,118980.0,118970.0,0.99208721]
[1755007330773,0.0004,118980.0,118970.0,0.43385818]
[1755007331209,0.0004,118980.0,118970.0,0.99208721]
[1755007331640,0.0004,118980.0,118970.0,0.43385818]
[1755007331904,0.0014,118980.0,118970.0,0.99208721]
[1755007332333,0.0004,118980.0,118970.0,0.99208721]
[1755007332561,0.0004,118980.0,118970.0,0.43631818]
[1755007332770,0.0004,118980.0,118970.0,1.69308721]
[1755007332997,0.0004,118980.0,118970.0,1.13685818]
[1755007333214,0.0004,118980.0,118970.0,1.69508721]
[1755007333436,0.0004,118980.0,118970.0,1.13685818]
[1755007333639,0.00347,118980.0,118970.0,0.98012016]
[1755007334066,0.00347,118980.0,118970.0,0.9716505]
[1755007334285,0.0004,118980.0,118970.0,1.52987953]
[1755007334501,0.0004,118980.0,118970.0,1.61236396]
[1755007335134,0.0004,118980.0,118970.0,0.91136396]
[1755007335572,0.0014,118980.0,118970.0,0.91136396]
[1755007335791,0.0014,118980.0,118970.0,0.35313493]
[1755007336017,0.18037422,118980.0,118960.0,0.16811116]
[1755007336233,0.19475324,118980.0,118970.0,0.3086696]
[1755007336445,0.02665777,118980.0,118970.0,0.86689863]
[1755007336670,0.00920875,118980.0,118970.0,0.86689863]
[1755007336919,0.00920875,118980.0,118970.0,0.3086696]
[1755007337129,0.00920875,118980.0,118970.0,0.35665311]
[1755007337336,0.00820875,118980.0,118970.0,0.35665311]
[1755007337543,0.00820875,118980.0,118970.0,0.91488214]
[1755007337958,0.00820875,118980.0,118970.0,0.35665311]
[1755007338210,0.00820875,118980.0,118970.0,0.91488214]
[1755007338429,0.00920875,118980.0,118970.0,0.99760539]
[1755007338643,0.0014,118980.0,118970.0,0.99906539]
[1755007338846,0.0004,118980.0,118970.0,0.99906539]
[1755007339203,0.0004,118980.0,118970.0,1.00006539]
[1755007339635,0.0004,118980.0,118970.0,1.70206539]
[1755007340443,1e-08,118980.0,118970.0,1.72706539]
[1755007340650,1e-08,118980.0,118970.0,1.75206539]
[1755007340857,1e-08,118980.0,118970.0,1.95382539]
[1755007341068,1e-08,118980.0,118970.0,1.3667838]
[1755007341273,1e-08,118980.0,118970.0,1.90382539]
[1755007341478,1e-08,118980.0,118970.0,1.90282539]
[1755007341865,0.00100001,118980.0,118970.0,1.90482539]
[1755007342096,0.00100001,118980.0,118970.0,1.34513636]
[1755007342309,1e-08,118980.0,118970.0,1.90136539]
[1755007342721,1e-08,118980.0,118970.0,1.89936539]
[1755007343189,1e-08,118980.0,118970.0,1.90236539]
[1755007343603,1e-08,118980.0,118970.0,1.90536539]
[1755007343810,0.00100001,118980.0,118970.0,1.90536539]
[1755007344275,1e-08,118980.0,118970.0,1.90236539]
[1755007344780,1e-08,118980.0,118970.0,1.90436539]
[1755007345491,1e-08,118980.0,118970.0,1.76380539]
[1755007345703,1e-08,118980.0,118970.0,1.90428539]
[1755007346132,1e-08,118980.0,118970.0,1.76380539]
[1755007346348,0.00307001,118980.0,118970.0,0.8731096]
[1755007346564,0.00307001,118980.0,118970.0,1.57181863]
[1755007347003,0.00307001,118980.0,118970.0,1.56981863]
[1755007347444,0.00407001,118980.0,118970.0,1.56681863]
[1755007347660,0.00407001,118980.0,118970.0,1.64930306]
[1755007348101,0.00507001,118980.0,118970.0,1.0085896]
[1755007348383,0.1906145,118980.0,118970.0,0.3085896]
[1755007348599,0.19842871,118980.0,118970.0,0.3085896]
[1755007348811,0.03033324,118980.0,118970.0,0.3085896]
[1755007349463,0.19842871,118980.0,118970.0,0.3085896]
[1755007349716,0.19843038,118980.0,118970.0,0.3085896]
[1755007349920,0.03033491,118980.0,118970.0,0.3085896]
[1755007350141,0.19843039,118980.0,118970.0,0.3085896]
[1755007350351,0.19843039,118980.0,118970.0,0.14048]
[1755007350575,0.1681096,118970.0,118950.0,0.73474951]
[1755007350791,0.1681096,118970.0,118960.0,0.14048]
[1755007350972,0.18555862,118970.0,118960.0,0.30860373]
[1755007351440,0.18862862,118970.0,118960.0,0.30860373]
[1755007352080,0.02051902,118970.0,118960.0,0.86683276]
[1755007352290,0.00307,118970.0,118960.0,0.93444316]
[1755007352507,0.01744903,118980.0,118970.0,0.1681096]
[1755007352719,0.02833497,118980.0,118970.0,0.3085896]
[1755007353139,0.01088595,118980.0,118970.0,0.3085896]
[1755007353343,0.01088595,118980.0,118970.0,0.86681863]
[1755007353557,0.01088595,118980.0,118970.0,0.3085896]
[1755007353939,0.01188595,118980.0,118970.0,0.3085896]
[1755007354794,0.01288595,118980.0,118970.0,0.3085896]
[1755007355004,0.18098142,118980.0,118970.0,0.3085896]
[1755007355434,0.19843044,118980.0,118970.0,0.3085896]
[1755007355654,0.03033497,118980.0,118970.0,0.3085896]
[1755007355867,0.19843044,118980.0,118970.0,0.3085896]
[1755007356308,0.03033497,118980.0,118970.0,0.3085896]
[1755007356520,0.19843044,118980.0,118970.0,0.1681096]
[1755007356746,0.1681096,118970.0,118960.0,0.30860373]
[1755007356952,0.1711996,118970.0,118960.0,0.30860373]
[1755007357455,0.16812373,118960.0,118940.0,0.16820247]
[1755007357669,0.18557275,118960.0,118950.0,0.84048]
[1755007357880,0.18557275,118960.0,118950.0,0.7]
[1755007358095,0.18557275,118960.0,118940.0,0.30867994]
[1755007358306,0.17122787,118950.0,118940.0,0.16819994]
[1755007358533,0.17122787,118950.0,118940.0,0.30867994]
[1755007359144,0.00309,118950.0,118940.0,0.30867994]
[1755007359565,0.17122787,118950.0,118940.0,0.30867994]
[1755007359990,0.00309,118950.0,118940.0,0.86690897]
[1755007360187,0.00309,118950.0,118940.0,0.30867994]
[1755007360823,0.18866275,118960.0,118950.0,0.16813787]
[1755007361039,0.18866275,118960.0,118940.0,0.30867994]
[1755007361243,0.18866275,118960.0,118950.0,0.16813787]
[1755007361868,0.02053902,118960.0,118950.0,0.16813787]
[1755007362073,0.17121373,118960.0,118950.0,0.7263669]
[1755007362301,0.17121373,118960.0,118950.0,0.16813787]
[1755007362506,0.00309,118960.0,118950.0,0.16813787]
[1755007362712,0.00509,118960.0,118950.0,0.16813787]
[1755007363244,0.00709,118960.0,118950.0,0.16813787]
[1755007363494,0.17521373,118960.0,118950.0,0.16813787]
[1755007363704,0.00909,118960.0,118950.0,0.16813787]
[1755007364104,0.006,118960.0,118950.0,0.7263669]
[1755007365077,0.004,118960.0,118950.0,0.25086112]
[1755007365289,0.004,118960.0,118950.0,0.80909015]
[1755007365463,0.17118556,118980.0,118970.0,0.1681096]
[1755007365671,0.00309001,118980.0,118970.0,0.3085896]
[1755007365873,1e-08,118980.0,118970.0,0.86681863]
[1755007366521,1e-08,118980.0,118970.0,0.3085896]
[1755007366730,1e-08,118980.0,118970.0,0.86681863]
[1755007367051,0.00200001,118980.0,118970.0,0.86681863]
[1755007367261,0.00200001,118980.0,118970.0,0.3085896]
[1755007367497,0.00509001,118980.0,118970.0,0.39107403]
[1755007367807,0.00609001,118980.0,118970.0,0.39107403]
[1755007368010,0.00300001,118980.0,118970.0,0.94930306]
[1755007368221,0.00300001,118980.0,118970.0,0.86681863]
[1755007368428,0.00300001,118980.0,118970.0,0.3085896]
[1755007370184,0.00300001,118980.0,118970.0,0.86681863]
[1755007370419,0.00100001,118980.0,118970.0,0.94954188]
[1755007370609,1e-08,118980.0,118970.0,0.95100188]
[1755007370828,1e-08,118980.0,118970.0,1.03348631]
[1755007371768,0.00100001,118980.0,118970.0,1.73548631]
[1755007372205,0.00100001,118980.0,118970.0,1.73948631]
[1755007373336,1e-08,118980.0,118970.0,1.73948631]
[1755007374554,1e-08,118980.0,118970.0,1.76448631]
[1755007375390,1e-08,118980.0,118970.0,1.78971631]
[1755007376262,1e-08,118980.0,118970.0,1.76471631]
[1755007376513,1e-08,118980.0,118970.0,1.76666631]
[1755007377577,1e-08,118980.0,118970.0,1.76658631]
[1755007377793,1e-08,118980.0,118970.0,1.76512631]
[1755007378755,1e-08,118980.0,118970.0,1.20685728]
[1755007378975,1e-08,118980.0,118970.0,1.76508631]
[1755007379863,1e-08,118980.0,118970.0,1.20685728]
[1755007380196,1e-08,118980.0,118970.0,1.62472631]
[1755007380300,0.00199001,118980.0,118970.0,1.06649728]
[1755007380525,0.00508001,118980.0,118970.0,1.03931728]
[1755007380758,0.00508001,118980.0,118970.0,1.17967728]
[1755007380985,0.00508001,118980.0,118970.0,1.73790631]
[1755007381241,0.17118548,118980.0,118970.0,1.0144696]
[1755007381481,0.17118548,118980.0,118970.0,0.706]
[1755007381699,0.00309001,118980.0,118970.0,0.3144696]
[1755007382367,0.00309,118980.0,118970.0,0.3124696]
[1755007382615,0.00309,118980.0,118970.0,0.3084696]
[1755007382885,0.00309,118980.0,118970.0,0.39095403]
[1755007383788,0.00309,118980.0,118970.0,0.39195403]
[1755007384012,0.17317547,118980.0,118970.0,0.1691096]
[1755007384238,0.17317547,118980.0,118970.0,0.3094296]
[1755007384468,0.00508,118980.0,118970.0,0.3094296]
[1755007385168,0.00309,118980.0,118970.0,0.86960863]
[1755007385391,0.00508,118980.0,118970.0,0.86960863]
[1755007385621,0.00508,118980.0,118970.0,0.95014306]
[1755007386314,0.00508,118980.0,118970.0,0.93959526]
[1755007386535,0.00508,118980.0,118970.0,0.91427506]
[1755007387596,0.00508,118980.0,118970.0,0.91639506]
[1755007387841,0.00508,118980.0,118970.0,0.77607506]
[1755007388050,0.00508,118980.0,118970.0,0.35816603]
[1755007388220,0.00508,118980.0,118970.0,0.91639506]
[1755007388427,0.00508,118980.0,118970.0,0.35816603]
[1755007388676,0.00508,118980.0,118970.0,0.91639506]
[1755007388812,0.00199,118980.0,118970.0,0.91639506]
[1755007389016,0.00199,118980.0,118970.0,0.35816603]
[1755007389244,0.00199,118980.0,118970.0,0.91639506]
[1755007389447,0.00505,118980.0,118970.0,0.91427506]
[1755007389624,0.00505,118980.0,118970.0,0.83179063]
[1755007390269,0.00505,118980.0,118970.0,0.2735616]
[1755007390473,2.19391964,119000.0,118990.0,0.16808135]
[1755007390688,2.19906964,119000.0,118990.0,0.30836135]
[1755007391875,2.01015,119000.0,118990.0,0.86664085]
[1755007392096,2.005,119000.0,118990.0,0.9514841]
[1755007392306,2.005,119000.0,118990.0,0.9515241]
[1755007392721,2.002,119000.0,118990.0,0.39329507]
[1755007392949,2.002,119000.0,118990.0,0.9515241]
[1755007393162,2.003,119000.0,118990.0,0.9515241]
[1755007393367,2.003,119000.0,118990.0,1.03400853]
[1755007393574,2.005,119000.0,118990.0,1.03400853]
[1755007393906,2.005,119000.0,118990.0,1.03600853]
[1755007394208,2.00709,119000.0,118990.0,1.1756595]
[1755007394400,2.01015,119000.0,118990.0,1.71911705]
[1755007394641,2.00815,119000.0,118990.0,1.71911705]
[1755007394815,2.00915,119000.0,118990.0,1.72961932]
[1755007396077,2.00915,119000.0,118990.0,1.73173932]
[1755007397680,2.004,119000.0,118990.0,1.73173932]
[1755007398087,2.004,119000.0,118990.0,0.47351029]
[1755007398338,2.00915,119000.0,118990.0,1.03173932]
[1755007398489,2.00915,119000.0,118990.0,0.47351029]
[1755007398695,2.00915,119000.0,118990.0,1.021189]
[1755007399063,2.00915,119000.0,118990.0,0.28709002]
[1755007401119,2.17721722,119000.0,118990.0,0.00409047]
[1755007401337,2.19466624,119000.0,118990.0,0.14429047]
[1755007402290,2.19466624,119000.0,118990.0,0.31237182]
[1755007402501,2.02659902,119000.0,118990.0,0.17217182]
[1755007402713,2.02659902,119000.0,118990.0,0.31233182]
[1755007403367,2.00915,119000.0,118990.0,0.87056085]
[1755007404070,2.00609,119000.0,118990.0,0.87268085]
[1755007404307,2.00609,119000.0,118990.0,0.31233182]
[1755007404535,2.17721722,119000.0,118990.0,0.17217182]
[1755007404770,2.17721722,119000.0,118990.0,0.31233182]
[1755007404997,2.00915,119000.0,118990.0,0.31233182]
[1755007405656,2.00915,119000.0,118990.0,0.31445182]
[1755007405863,2.00915,119000.0,118990.0,0.87268085]
[1755007406078,2.004,119000.0,118990.0,1.03788853]
[1755007407397,2.004,119000.0,118990.0,1.03934853]
[1755007407851,2.004,119000.0,118990.0,1.73934853]
[1755007408366,2.004,119000.0,118990.0,2.29757756]
[1755007408595,2.004,119000.0,118990.0,1.59918853]
[1755007408820,2.004,119000.0,118990.0,1.73784853]
[1755007409044,2.004,119000.0,118990.0,1.73780853]
[1755007409270,2.001,119000.0,118990.0,1.1775795]
[1755007409485,2.0,119000.0,118990.0,1.73380853]
[1755007409692,2.0,119000.0,118990.0,1.73780853]
[1755007409909,2.0,119000.0,118990.0,1.73980853]
[1755007410801,2.0,119000.0,118990.0,1.1815795]
[1755007411005,2.0,119000.0,118990.0,1.73980853]
[1755007411658,2.0,119000.0,118990.0,1.1815795]
[1755007411868,2.00515,119000.0,118990.0,1.73980853]
[1755007412326,2.00515,119000.0,118990.0,1.59760853]
[1755007412515,2.00515,119000.0,118990.0,1.73768853]
[1755007412975,2.00515,119000.0,118990.0,1.73980853]
[1755007413207,2.0,119000.0,118990.0,1.73980853]
[1755007413429,2.00515,119000.0,118990.0,1.73768853]
[1755007413642,2.00515,119000.0,118990.0,1.59760853]
[1755007413846,2.00515,119000.0,118990.0,1.6551641]
[1755007415467,2.00515,119000.0,118990.0,1.09693507]
[1755007415690,2.00515,119000.0,118990.0,1.09689507]
[1755007416076,2.00515,119000.0,118990.0,0.95689507]
[1755007416282,2.17321722,119000.0,118990.0,0.70609047]
[1755007416488,2.17321722,119000.0,118990.0,0.84609047]
[1755007416920,2.19066624,119000.0,118990.0,0.70609047]
[1755007417126,2.21515624,119000.0,118990.0,0.84609047]
[1755007417326,2.21515624,119000.0,118990.0,0.14009047]
[1755007417467,2.21515624,119000.0,118990.0,0.14109047]
[1755007417671,2.21515624,119000.0,118990.0,0.14209047]
[1755007418785,2.21515624,119000.0,118990.0,0.30917182]
[1755007418989,2.21515624,119000.0,118990.0,0.14009047]
[1755007419424,2.21715624,119000.0,118990.0,0.14009047]
[1755007420071,2.22556337,119000.0,118990.0,0.14009047]
[1755007420306,2.21715624,119000.0,118990.0,0.14009047]
[1755007420824,2.21715624,119000.0,118990.0,0.14005047]
[1755007421476,2.21715624,119000.0,118990.0,0.30813182]
[1755007421940,2.00715,119000.0,118990.0,0.86636085]
[1755007422620,2.002,119000.0,118990.0,0.95090528]
[1755007422830,2.002,119000.0,118990.0,1.03508853]
[1755007423038,2.002,119000.0,118990.0,1.73508853]
[1755007423253,2.002,119000.0,118990.0,1.73362853]
[1755007423467,2.001,119000.0,118990.0,1.73362853]
[1755007423674,2.0,119000.0,118990.0,1.73362853]
[1755007423891,2.0,119000.0,118990.0,1.73462853]
[1755007424097,2.0,119000.0,118990.0,1.73662853]
[1755007425158,2.0,119000.0,118990.0,1.73708853]
[1755007425370,1.99796,119000.0,118990.0,1.73562853]
[1755007425581,1.99796,119000.0,118990.0,1.73362853]
[1755007425842,1.99796,119000.0,118990.0,1.73862853]
[1755007426248,1.99796,119000.0,118990.0,1.72807842]
[1755007426460,2.00302,119000.0,118990.0,1.17820903]
[1755007426666,2.17108722,119000.0,118990.0,1.01300135]
[1755007426880,2.17108722,119000.0,118990.0,0.84492]
[1755007427946,2.17108722,119000.0,118990.0,1.01300135]
[1755007428151,2.17108722,119000.0,118990.0,0.14292]
[1755007428614,2.17108722,119000.0,118990.0,0.002]
[1755007428826,2.17108722,119000.0,118990.0,0.31196135]
[1755007429028,2.17108722,119000.0,118990.0,0.30996135]
[1755007429233,2.17108722,119000.0,118990.0,0.14188]
[1755007429456,2.17308722,119000.0,118990.0,0.14188]
[1755007429692,2.19053624,119000.0,118990.0,0.002]
[1755007429902,2.99585852,119000.0,118990.0,0.002]
[1755007430755,2.43762949,119000.0,118990.0,0.002]
[1755007433733,2.99585852,119000.0,118990.0,0.002]
[1755007434393,2.43762949,119000.0,118990.0,0.002]
[1755007434534,2.43758949,119000.0,118990.0,0.002]
[1755007434750,2.43658949,119000.0,118990.0,0.002]
[1755007435165,0.18554449,118980.0,118970.0,0.13988]
[1755007435429,0.18754449,118980.0,118970.0,0.13988]
[1755007435583,0.19060449,118980.0,118970.0,0.13988]
[1755007435984,0.19060449,118980.0,118970.0,0.3079896]
[1755007437233,0.19260449,118980.0,118970.0,0.13988]
[1755007437931,0.19360449,118980.0,118970.0,0.13988]
[1755007438139,0.19360449,118980.0,118970.0,0.3079896]
[1755007438347,0.19360449,118980.0,118970.0,0.13988]
[1755007440515,0.19360449,118980.0,118950.0,0.16813383]
[1755007440516,0.1681096,118970.0,118950.0,0.16813383]
[1755007440692,0.17318373,118960.0,118950.0,0.30793383]
[1755007440879,0.17318373,118960.0,118950.0,1.00793383]
[1755007440880,0.00506,118960.0,118950.0,1.00793383]
[1755007441105,0.17318373,118960.0,118950.0,0.30999383]
[1755007441721,0.17318373,118960.0,118950.0,0.31099383]
[1755007441929,0.00518359,118960.0,118950.0,0.31099383]
[1755007442151,0.00012359,118960.0,118950.0,0.30999383]
[1755007442696,0.00012359,118960.0,118950.0,0.31299383]
[1755007443604,0.16824732,118960.0,118950.0,0.31299383]
[1755007443863,0.17330732,118960.0,118950.0,0.31299383]
[1755007444100,0.17330732,118960.0,118950.0,0.003]
[1755007444319,0.17330732,118960.0,118950.0,0.14276]
[1755007444727,0.17330732,118960.0,118950.0,0.14272]
[1755007444966,0.17330732,118960.0,118950.0,0.14072]
[1755007445370,0.17330732,118960.0,118950.0,0.30785787]
[1755007445580,0.17430732,118960.0,118950.0,0.30785787]
[1755007445784,0.17430732,118960.0,118950.0,0.13972]
[1755007445984,0.17430732,118960.0,118950.0,0.30785787]
[1755007446561,0.17430732,118960.0,118950.0,0.16813787]
[1755007446763,0.17430732,118960.0,118950.0,0.30789787]
[1755007446971,0.00618359,118960.0,118950.0,0.31004787]
[1755007447173,0.17430732,118960.0,118950.0,0.31004787]
[1755007447777,0.00618359,118960.0,118950.0,0.31004787]
[1755007447968,0.17430732,118960.0,118950.0,0.31004787]
[1755007448168,0.17430732,118960.0,118950.0,0.30789787]
[1755007448426,0.00618359,118960.0,118950.0,0.30789787]
[1755007448682,0.00112359,118960.0,118950.0,0.8682769]
[1755007448904,0.16924732,118960.0,118950.0,0.31004787]
[1755007449106,0.16924732,118960.0,118950.0,0.17028787]
[1755007449283,0.17447732,118960.0,118950.0,0.30785787]
[1755007449427,0.17447732,118960.0,118950.0,0.30781787]
[1755007449643,0.00635359,118960.0,118950.0,0.30781787]
[1755007449851,0.00112359,118960.0,118950.0,0.30996787]
[1755007450065,0.17447732,118960.0,118950.0,0.30996787]
[1755007450268,0.17447732,118960.0,118950.0,0.30781787]
[1755007450483,0.17447732,118960.0,118950.0,0.16813787]
[1755007450690,0.00112359,118960.0,118950.0,0.8681969]
[1755007450901,0.00112359,118960.0,118950.0,0.30996787]
[1755007451096,0.00112359,118960.0,118950.0,0.8681969]
[1755007451332,0.00112359,118960.0,118950.0,0.8696569]
[1755007451961,0.00112359,118960.0,118950.0,1.01368008]
[1755007452175,0.00112359,118960.0,118950.0,0.95238015]
[1755007453680,0.00112359,118960.0,118950.0,1.65238015]
[1755007453915,0.00012359,118960.0,118950.0,1.65238015]
[1755007454734,0.00012359,118960.0,118950.0,1.09415112]
[1755007454943,0.00012359,118960.0,118950.0,1.65438015]
[1755007455153,0.00012359,118960.0,118950.0,1.17713555]
[1755007455367,0.00535359,118960.0,118950.0,1.0934123]
[1755007455575,0.00012359,118960.0,118950.0,1.0934123]
[1755007455777,0.00112359,118960.0,118950.0,1.0994123]
[1755007456842,0.00112359,118960.0,118950.0,1.01692787]
[1755007457496,0.00112359,118960.0,118950.0,1.5751569]
[1755007457903,0.00112359,118960.0,118950.0,1.01692787]
[1755007458077,0.00112359,118960.0,118950.0,1.5751569]
[1755007458420,0.00112359,118960.0,118950.0,1.56092661]
[1755007458618,0.00112359,118960.0,118950.0,1.64341104]
[1755007458844,0.00112359,118960.0,118950.0,1.08518201]
[1755007459032,0.00112359,118960.0,118950.0,1.07040338]
[1755007459704,0.00635359,118960.0,118950.0,0.28791895]
[1755007459917,0.00635359,118960.0,118950.0,0.14827895]
[1755007460138,0.17447732,118960.0,118950.0,0.14612895]
[1755007460358,0.17447732,118960.0,118950.0,0.007]
[1755007460795,0.17447732,118960.0,118950.0,0.1466]
[1755007462812,0.19192634,118960.0,118950.0,0.007]